bitfinex-derivatives/quotes_BTCF0:USTF0_20250510
["timestamp","ask_amount","ask_price","bid_price","bid_amount"]
[1746867890138,0.1580518,103530.0,103520.0,2.4652897]
[1746867890339,0.1580518,103530.0,103520.0,2.57297474]
[1746867890537,0.1610518,103530.0,103520.0,2.57297474]
[1746867891143,0.1580518,103530.0,103520.0,2.57297474]
[1746867891439,0.0807818,103530.0,103520.0,2.57297474]
[1746867892338,0.0807818,103530.0,103520.0,2.21217474]
[1746867892640,0.1223818,103530.0,103520.0,2.57297474]
[1746867892946,0.1123818,103530.0,103520.0,2.46297474]
[1746867893136,0.3723818,103530.0,103520.0,2.46297474]
[1746867893333,0.3407818,103530.0,103520.0,2.46297474]
[1746867893743,0.0955418,103530.0,103520.0,2.46297474]
[1746867894039,0.0955418,103530.0,103520.0,2.55957074]
[1746867894244,0.0755418,103530.0,103520.0,2.7638508]
[1746867894448,0.0755418,103530.0,103520.0,2.65616576]
[1746867895148,0.0755418,103530.0,103520.0,2.72616576]
[1746867895451,0.0735418,103530.0,103520.0,2.72616576]
[1746867896457,0.0755418,103530.0,103520.0,2.72716576]
[1746867897245,0.0735418,103530.0,103520.0,2.72616576]
[1746867898546,0.9575128,103530.0,103520.0,0.236]
[1746867898744,1.35825784,103530.0,103520.0,0.3591897]
[1746867898941,1.35825784,103530.0,103520.0,0.166]
[1746867899141,0.1931897,103520.0,103510.0,0.3712951]
[1746867899340,1.1540897,103520.0,103510.0,0.3712951]
[1746867900144,0.6209,103520.0,103510.0,0.3712951]
[1746867900348,1.1240897,103520.0,103510.0,0.4022951]
[1746867900746,1.1270897,103520.0,103510.0,0.4032951]
[1746867900945,1.1290897,103520.0,103510.0,0.4032951]
[1746867901444,1.1290897,103520.0,103510.0,0.51098014]
[1746867901445,0.5751,103520.0,103510.0,0.51098014]
[1746867901643,0.2417,103520.0,103510.0,0.89178014]
[1746867901849,0.2417,103520.0,103510.0,0.88178014]
[1746867902047,0.6025,103520.0,103510.0,0.52098014]
[1746867902249,0.6353,103520.0,103510.0,0.68698014]
[1746867902651,0.63723199,103520.0,103510.0,0.68698014]
[1746867903967,0.84723199,103520.0,103510.0,0.68698014]
[1746867904452,0.45363199,103520.0,103510.0,1.04778014]
[1746867905247,0.25883199,103520.0,103510.0,0.5792951]
[1746867905852,0.25883199,103520.0,103510.0,0.68698014]
[1746867906053,0.25883199,103520.0,103510.0,0.5792951]
[1746867906246,0.25883199,103520.0,103510.0,0.68698014]
[1746867906552,0.25883199,103520.0,103510.0,1.04778014]
[1746867907144,0.35883199,103520.0,103510.0,1.04778014]
[1746867907345,0.10883199,103520.0,103510.0,1.04778014]
[1746867907547,0.07693199,103520.0,103510.0,1.04778014]
[1746867907749,0.00693199,103520.0,103510.0,1.08778014]
[1746867907954,0.00693199,103520.0,103510.0,1.04778014]
[1746867908547,0.00693199,103520.0,103510.0,1.15778014]
[1746867909147,0.00693199,103520.0,103510.0,1.47438449]
[1746867909449,0.00693199,103520.0,103510.0,2.97438449]
[1746867909644,0.00693199,103520.0,103510.0,3.07098849]
[1746867910058,9e-08,103520.0,103510.0,3.07098849]
[1746867910749,0.02163899,103530.0,103520.0,0.1931897]
[1746867910950,0.02163899,103530.0,103520.0,1.23947474]
[1746867911145,9e-08,103530.0,103520.0,1.50207074]
[1746867911350,9e-08,103530.0,103520.0,3.20636013]
[1746867911748,9e-08,103530.0,103520.0,3.09867509]
[1746867913556,9e-08,103530.0,103520.0,3.00207909]
[1746867913759,9e-08,103530.0,103520.0,3.00407909]
[1746867913963,9e-08,103530.0,103520.0,3.00707909]
[1746867915551,9e-08,103530.0,103520.0,2.89939405]
[1746867915750,0.03200009,103530.0,103520.0,3.00707909]
[1746867915950,0.03200009,103530.0,103520.0,2.89939405]
[1746867916146,0.38200009,103530.0,103520.0,0.8227897]
[1746867916353,0.44640009,103530.0,103520.0,0.8008897]
[1746867916754,0.44640009,103530.0,103520.0,2.3008897]
[1746867916956,0.44640009,103530.0,103520.0,2.2978897]
[1746867917157,0.44640009,103530.0,103520.0,2.2988897]
[1746867917562,0.44640009,103530.0,103520.0,2.2968897]
[1746867918062,0.44640009,103530.0,103520.0,2.2958897]
[1746867918261,0.44740009,103530.0,103520.0,2.2958897]
[1746867918460,0.03300009,103530.0,103520.0,2.41357474]
[1746867918663,0.033,103530.0,103520.0,2.41357474]
[1746867919464,0.4244,103530.0,103520.0,2.2958897]
[1746867919763,0.4234,103530.0,103520.0,2.2978897]
[1746867920155,0.4234,103530.0,103520.0,2.2878897]
[1746867921562,0.4234,103530.0,103520.0,2.39557474]
[1746867922062,0.032,103530.0,103520.0,2.46557474]
[1746867923165,0.0631,103530.0,103520.0,2.46557474]
[1746867923463,0.0631,103530.0,103520.0,2.41557474]
[1746867923965,0.2831,103530.0,103520.0,2.41557474]
[1746867924160,0.476271,103530.0,103520.0,0.4470897]
[1746867924357,0.476271,103530.0,103520.0,0.3611897]
[1746867924358,0.97745604,103530.0,103520.0,0.3611897]
[1746867925162,0.97745604,103530.0,103520.0,0.1951897]
[1746867925560,2.59004608,103530.0,103480.0,0.39701359]
[1746867925760,0.34920714,103510.0,103500.0,0.1932063]
[1746867926067,1.08000714,103510.0,103500.0,0.1932063]
[1746867926251,1.24600714,103510.0,103500.0,0.1932063]
[1746867926661,0.193227,103500.0,103490.0,0.4052596]
[1746867926853,1.20627204,103500.0,103490.0,0.4052596]
[1746867927064,1.20627204,103500.0,103490.0,0.2415399]
[1746867927659,1.098587,103500.0,103490.0,0.2415399]
[1746867927860,1.098587,103500.0,103490.0,0.2435399]
[1746867928054,1.098587,103500.0,103490.0,0.2465399]
[1746867928260,1.20627204,103500.0,103490.0,0.2465399]
[1746867929066,1.147187,103500.0,103490.0,0.2465399]
[1746867929369,1.139487,103500.0,103490.0,0.3114399]
[1746867930068,0.1932457,103490.0,103480.0,0.0002642]
[1746867930270,0.1932643,103480.0,103470.0,0.13769755]
[1746867930462,1.08264934,103480.0,103470.0,0.08937725]
[1746867930768,0.5517,103480.0,103470.0,0.08937725]
[1746867930960,0.9149643,103480.0,103470.0,0.18577725]
[1746867931355,0.3609,103480.0,103470.0,0.18577725]
[1746867931564,0.62409571,103480.0,103470.0,0.21077725]
[1746867931763,0.73409571,103480.0,103470.0,0.21077725]
[1746867931965,1.18904295,103480.0,103470.0,0.19077725]
[1746867932271,1.30622799,103480.0,103470.0,0.0699]
[1746867932566,1.19854295,103480.0,103470.0,0.263183]
[1746867932961,1.30622799,103480.0,103470.0,0.263183]
[1746867933363,1.30722799,103480.0,103470.0,0.268183]
[1746867934063,1.30722799,103480.0,103470.0,0.203283]
[1746867934465,1.19954295,103480.0,103470.0,0.203283]
[1746867934771,1.30722799,103480.0,103470.0,0.203283]
[1746867935066,1.30722799,103480.0,103470.0,0.267283]
[1746867935569,1.29772799,103480.0,103470.0,0.267283]
[1746867935766,0.63597865,103480.0,103470.0,0.38496804]
[1746867935975,0.60357865,103480.0,103470.0,0.37996804]
[1746867936162,0.59410724,103480.0,103470.0,0.440283]
[1746867936363,0.57996,103480.0,103470.0,0.437283]
[1746867936769,0.57996,103480.0,103470.0,0.54496804]
[1746867937274,0.57996,103480.0,103470.0,0.90576804]
[1746867937774,0.191,103480.0,103470.0,0.90576804]
[1746867938571,1e-07,103480.0,103470.0,1.31009478]
[1746867938773,1e-07,103480.0,103470.0,1.57009478]
[1746867939472,1e-07,103480.0,103470.0,1.66673478]
[1746867939975,1e-07,103480.0,103470.0,2.95673478]
[1746867940168,1e-07,103480.0,103470.0,2.84904974]
[1746867941169,1e-07,103480.0,103470.0,2.75240974]
[1746867941773,0.00193284,103480.0,103470.0,2.65576804]
[1746867942775,0.46519714,103480.0,103470.0,0.467283]
[1746867942977,0.46519714,103480.0,103470.0,0.17]
[1746867942978,1.32248218,103480.0,103470.0,0.17]
[1746867943182,1.53218218,103480.0,103470.0,0.004]
[1746867943482,1.53218218,103480.0,103470.0,0.197283]
[1746867943667,1.56584247,103480.0,103470.0,0.229583]
[1746867943974,1.56584247,103480.0,103470.0,0.004]
[1746867944174,1.39984247,103480.0,103470.0,0.004]
[1746867944772,1.39984247,103480.0,103470.0,0.197283]
[1746867946275,1.47715247,103480.0,103470.0,0.004]
[1746867946467,1.57379247,103480.0,103470.0,0.004]
[1746867946778,1.82379247,103480.0,103470.0,0.004]
[1746867947179,1.98979247,103480.0,103470.0,0.004]
[1746867947479,1.98979237,103480.0,103470.0,0.002]
[1746867947774,0.2416431,103460.0,103450.0,0.1933204]
[1746867948074,0.5533158,103460.0,103450.0,0.2575204]
[1746867948273,0.9454158,103460.0,103450.0,0.4235204]
[1746867948474,0.9549158,103460.0,103450.0,0.4235204]
[1746867948778,0.7208,103460.0,103450.0,0.4235204]
[1746867948989,0.6337172,103470.0,103460.0,0.1933017]
[1746867949175,0.9537172,103470.0,103460.0,0.2575017]
[1746867949374,1.10456253,103470.0,103460.0,0.2575017]
[1746867949679,1.49256253,103470.0,103460.0,0.2575017]
[1746867950181,1.49356253,103470.0,103460.0,0.2605017]
[1746867950381,1.49356253,103470.0,103460.0,0.2625017]
[1746867950584,1.3427172,103470.0,103460.0,0.2625017]
[1746867950779,0.7498,103470.0,103460.0,0.2725017]
[1746867951076,0.7918,103470.0,103460.0,0.4365017]
[1746867951283,0.945083,103470.0,103460.0,0.4365017]
[1746867951475,0.955083,103470.0,103460.0,0.4365017]
[1746867951675,0.761083,103470.0,103460.0,0.4365017]
[1746867951873,0.95697592,103470.0,103460.0,0.4345017]
[1746867952082,1.26097592,103470.0,103460.0,0.4355017]
[1746867952375,0.31893292,103470.0,103460.0,0.7963017]
[1746867952684,0.45689292,103470.0,103460.0,0.7963017]
[1746867953569,0.48105292,103470.0,103460.0,0.7963017]
[1746867953776,0.42105292,103470.0,103460.0,2.43764703]
[1746867953975,0.42105292,103470.0,103460.0,2.2963017]
[1746867955285,0.22709292,103470.0,103460.0,2.58764703]
[1746867955482,0.03309292,103470.0,103460.0,2.58764703]
[1746867956384,1e-08,103470.0,103460.0,2.96429807]
[1746867956581,1e-08,103470.0,103460.0,2.82295274]
[1746867956787,0.00724001,103470.0,103460.0,2.96429807]
[1746867957589,0.00724001,103470.0,103460.0,2.96329807]
[1746867957789,0.00724001,103470.0,103460.0,2.96429807]
[1746867958586,0.00724001,103470.0,103460.0,2.96329807]
[1746867958783,0.13996,103480.0,103470.0,0.193283]
[1746867958990,0.13996,103480.0,103470.0,0.86612833]
[1746867959181,0.10958,103480.0,103470.0,1.03212833]
[1746867959585,0.15958,103480.0,103470.0,1.03212833]
[1746867960187,0.16058,103480.0,103470.0,1.03212833]
[1746867960391,0.11258,103480.0,103470.0,1.03212833]
[1746867960588,0.11258,103480.0,103470.0,1.12212833]
[1746867960888,0.002,103480.0,103470.0,1.12212833]
[1746867961088,0.22437,103490.0,103480.0,0.1932643]
[1746867961393,0.19372,103500.0,103490.0,0.1932457]
[1746867961589,1.79381489,103510.0,103500.0,0.193227]
[1746867961785,1.66172539,103510.0,103500.0,0.263927]
[1746867962087,0.20857932,103510.0,103500.0,0.94207233]
[1746867962288,0.1988,103510.0,103500.0,0.94207233]
[1746867962787,0.1988,103510.0,103500.0,0.797727]
[1746867962991,0.1988,103510.0,103500.0,0.93907233]
[1746867963188,0.0020001,103510.0,103500.0,1.05907233]
[1746867963389,0.06726,103520.0,103510.0,0.1932083]
[1746867963691,0.0086485,103520.0,103510.0,0.74223742]
[1746867963879,0.198,103530.0,103520.0,0.1931897]
[1746867964085,0.198,103530.0,103520.0,2.39271882]
[1746867964284,0.198,103530.0,103520.0,2.42821882]
[1746867964995,0.004,103530.0,103520.0,2.42821882]
[1746867966089,0.004,103530.0,103520.0,2.3206897]
[1746867966393,0.244,103530.0,103520.0,2.3206897]
[1746867966592,0.2804,103530.0,103520.0,2.3206897]
[1746867967090,0.244,103530.0,103520.0,2.3206897]
[1746867967393,0.036,103530.0,103520.0,2.3206897]
[1746867967896,0.036,103530.0,103520.0,2.42821882]
[1746867968287,0.006,103530.0,103520.0,2.57821882]
[1746867969491,0.006,103530.0,103520.0,2.42821882]
[1746867970094,0.004,103530.0,103520.0,2.43321882]
[1746867971692,0.004,103530.0,103520.0,2.3256897]
[1746867971897,0.004,103530.0,103520.0,2.43321882]
[1746867972083,0.004,103530.0,103520.0,2.3256897]
[1746867972282,0.004,103530.0,103520.0,2.43321882]
[1746867973693,0.004,103530.0,103520.0,2.3256897]
[1746867973894,0.004,103530.0,103520.0,2.43321882]
[1746867974899,0.004,103530.0,103520.0,2.3256897]
[1746867975195,0.04,103530.0,103520.0,2.3256897]
[1746867975699,0.004,103530.0,103520.0,2.3256897]
[1746867975896,0.004,103530.0,103520.0,0.7549897]
[1746867976192,3.18665704,103530.0,103520.0,0.005]
[1746867976389,3.19795704,103530.0,103520.0,0.005]
[1746867976792,0.1932083,103510.0,103500.0,0.0692]
[1746867977096,0.99781742,103510.0,103500.0,0.228927]
[1746867977400,0.193227,103500.0,103490.0,0.00144923]
[1746867977702,0.932727,103500.0,103490.0,0.1932457]
[1746867977891,0.932727,103500.0,103490.0,0.2607457]
[1746867978092,1.098727,103500.0,103490.0,0.2607457]
[1746867979196,0.932727,103500.0,103490.0,0.2607457]
[1746867979396,0.0534,103500.0,103490.0,0.37827482]
[1746867979699,0.3872,103510.0,103500.0,0.193227]
[1746867979895,0.4194,103510.0,103500.0,0.40375612]
[1746867980098,0.3862,103510.0,103500.0,0.41375612]
[1746867980293,0.3862,103510.0,103500.0,0.94055612]
[1746867980493,0.3862,103510.0,103500.0,0.833027]
[1746867980698,0.3862,103510.0,103500.0,0.94055612]
[1746867980901,0.3882,103510.0,103500.0,0.833027]
[1746867983200,0.3882,103510.0,103500.0,2.333027]
[1746867983601,0.5814083,103510.0,103500.0,2.333027]
[1746867983802,0.9014083,103510.0,103500.0,1.972227]
[1746867984094,0.9505083,103510.0,103500.0,1.796227]
[1746867984303,1.05803742,103510.0,103500.0,0.0683]
[1746867984501,1.41883742,103510.0,103500.0,0.261527]
[1746867984804,1.3113083,103510.0,103500.0,0.261527]
[1746867985098,0.9505083,103510.0,103500.0,0.261527]
[1746867985300,0.9352083,103510.0,103500.0,0.296127]
[1746867985502,1.2960083,103510.0,103500.0,0.296127]
[1746867985801,1.41883742,103510.0,103500.0,0.296127]
[1746867986804,1.3113083,103510.0,103500.0,0.296127]
[1746867987096,1.41883742,103510.0,103500.0,0.296127]
[1746867987297,1.41883742,103510.0,103500.0,0.0338]
[1746867987506,0.193227,103500.0,103490.0,0.2898516]
[1746867987697,0.604827,103500.0,103490.0,0.2415409]
[1746867987890,1.09235612,103500.0,103490.0,0.3127409]
[1746867988294,1.09235612,103500.0,103490.0,0.2644335]
[1746867988500,0.984827,103500.0,103490.0,0.2644335]
[1746867988699,1.09235612,103500.0,103490.0,0.2644335]
[1746867989102,1.09235612,103500.0,103490.0,0.2664335]
[1746867989303,0.985827,103500.0,103490.0,0.2694335]
[1746867990004,1.371787,103500.0,103490.0,0.2694335]
[1746867992001,0.7773,103500.0,103490.0,0.2694335]
[1746867992206,0.101,103500.0,103490.0,1.01776262]
[1746867992402,0.101,103500.0,103490.0,0.79776262]
[1746867992701,0.001,103500.0,103490.0,0.81776262]
[1746867992903,0.00824,103500.0,103490.0,0.81776262]
[1746867993103,0.00824,103500.0,103490.0,0.98376262]
[1746867993692,0.19312,103520.0,103510.0,0.2898052]
[1746867993897,0.07,103520.0,103510.0,0.86473392]
[1746867994092,1.3561034,103530.0,103520.0,0.1931897]
[1746867994299,1.7519028,103530.0,103520.0,0.39631882]
[1746867994611,1.7519028,103530.0,103520.0,0.2887897]
[1746867994902,0.4017318,103530.0,103520.0,0.39631882]
[1746867995198,0.2090518,103530.0,103520.0,0.92311882]
[1746867995399,0.0159318,103530.0,103520.0,0.92111882]
[1746867995907,0.0159318,103530.0,103520.0,0.92011882]
[1746867996096,0.0189318,103530.0,103520.0,0.92011882]
[1746867996297,0.0089318,103530.0,103520.0,1.01671384]
[1746867996499,0.0059318,103530.0,103520.0,1.08671384]
[1746867996801,1.77491192,103530.0,103520.0,0.3841897]
[1746867997003,1.83911192,103530.0,103520.0,0.3641897]
[1746867997205,1.7315828,103530.0,103520.0,0.2742897]
[1746867997398,1.3707828,103530.0,103520.0,0.2742897]
[1746867997897,1.0207828,103530.0,103520.0,0.2842897]
[1746867998102,1.0207828,103530.0,103520.0,0.3254897]
[1746867998103,0.4409318,103530.0,103520.0,0.3254897]
[1746867998406,0.4025318,103530.0,103520.0,0.3254897]
[1746867998808,0.1994518,103530.0,103520.0,0.79381882]
[1746867999103,0.1994518,103530.0,103520.0,0.95981882]
[1746867999300,0.0069318,103530.0,103520.0,0.95981882]
[1746868002005,0.0069318,103530.0,103520.0,0.8522897]
[1746868003408,0.0069318,103530.0,103520.0,0.7349897]
[1746868003608,1.16476104,103530.0,103520.0,0.171]
[1746868003810,1.31495704,103530.0,103520.0,0.171]
[1746868004202,1.86635704,103530.0,103520.0,0.005]
[1746868004402,1.48095704,103530.0,103520.0,0.005]
[1746868004601,1.86635704,103530.0,103520.0,0.005]
[1746868006113,1.75882792,103530.0,103520.0,0.005]
[1746868006705,1.66223192,103530.0,103520.0,0.1981897]
[1746868006907,1.66223192,103530.0,103520.0,0.2763897]
[1746868007212,1.3608228,103530.0,103520.0,0.2763897]
[1746868007411,1.46835192,103530.0,103520.0,0.2763897]
[1746868008100,1.3608228,103530.0,103520.0,0.2763897]
[1746868008307,0.5954228,103530.0,103520.0,0.3240897]
[1746868008515,0.7654228,103530.0,103520.0,0.3140897]
[1746868008718,0.5722518,103530.0,103520.0,0.78241882]
[1746868009216,0.5722518,103530.0,103520.0,0.8408897]
[1746868009612,0.5722518,103530.0,103520.0,2.3408897]
[1746868010107,0.9330518,103530.0,103520.0,1.9800897]
[1746868010619,0.5722518,103530.0,103520.0,2.3508897]
[1746868011517,0.3922518,103530.0,103520.0,2.45841882]
[1746868012615,0.1991718,103530.0,103520.0,2.3508897]
[1746868012916,0.2091718,103530.0,103520.0,2.3508897]
[1746868013115,0.0169318,103530.0,103520.0,2.45841882]
[1746868013418,0.0069318,103530.0,103520.0,2.45841882]
[1746868014512,0.0069318,103530.0,103520.0,2.3508897]
[1746868014706,0.0069318,103530.0,103520.0,2.45841882]
[1746868014918,0.0069318,103530.0,103520.0,2.47291901]
[1746868015913,0.0069318,103530.0,103520.0,2.82951501]
[1746868018125,0.0069318,103530.0,103520.0,2.90951501]
[1746868019123,0.0069318,103530.0,103520.0,2.80198589]
[1746868019419,0.0069318,103530.0,103520.0,2.90951501]
[1746868020011,0.00724,103540.0,103530.0,0.193171]
[1746868020209,0.00724,103540.0,103530.0,0.79500012]
[1746868020415,0.00724,103540.0,103530.0,0.687471]
[1746868020614,0.19208,103550.0,103540.0,0.1931524]
[1746868020821,1.9522426,103560.0,103550.0,0.1931337]
[1746868021027,0.3693646,103560.0,103550.0,0.2666337]
[1746868021318,0.5610446,103560.0,103550.0,0.2666337]
[1746868021520,0.3693646,103560.0,103550.0,0.2666337]
[1746868021715,0.3595,103560.0,103550.0,0.37416282]
[1746868021915,0.3595,103560.0,103550.0,0.2666337]
[1746868022117,0.328,103560.0,103550.0,0.2676337]
[1746868022424,0.331,103560.0,103550.0,0.2676337]
[1746868022721,0.3683,103560.0,103550.0,0.2676337]
[1746868023317,0.3683,103560.0,103550.0,0.2776337]
[1746868025121,0.331,103560.0,103550.0,0.74596282]
[1746868025321,1e-07,103560.0,103550.0,0.87596282]
[1746868025518,1e-07,103560.0,103550.0,0.97252986]
[1746868026321,1e-07,103560.0,103550.0,1.17852986]
[1746868027130,1e-07,103560.0,103550.0,2.4344337]
[1746868027331,1e-07,103560.0,103550.0,2.2684337]
[1746868027626,0.0392001,103560.0,103550.0,2.2684337]
[1746868028626,1e-07,103560.0,103550.0,2.37596282]
[1746868028826,0.1300001,103560.0,103550.0,2.37596282]
[1746868029128,0.1300001,103560.0,103550.0,2.01516282]
[1746868029322,1e-07,103560.0,103550.0,2.01516282]
[1746868029624,0.3200001,103560.0,103550.0,1.9076337]
[1746868029828,0.3578001,103560.0,103550.0,1.9076337]
[1746868034921,1.21040432,103560.0,103550.0,0.4076337]
[1746868035122,1.5067152,103560.0,103550.0,0.1941337]
[1746868035321,1.61424432,103560.0,103550.0,0.1941337]
[1746868037837,1.5067152,103560.0,103550.0,0.1941337]
[1746868038027,1.61424432,103560.0,103550.0,0.1941337]
[1746868038226,1.44824432,103560.0,103550.0,0.1941337]
[1746868042938,1.44824432,103560.0,103550.0,0.2306337]
[1746868043434,1.25512922,103560.0,103550.0,0.2684337]
[1746868043731,1.1015201,103560.0,103550.0,0.2784337]
[1746868043936,1.2946352,103560.0,103550.0,0.2784337]
[1746868044138,0.7407201,103560.0,103550.0,0.2784337]
[1746868044639,0.9338352,103560.0,103550.0,0.2784337]
[1746868047542,0.7407201,103560.0,103550.0,0.2784337]
[1746868047742,0.9338352,103560.0,103550.0,0.2784337]
[1746868048139,1.04136432,103560.0,103550.0,0.2784337]
[1746868048546,0.9338352,103560.0,103550.0,0.2784337]
[1746868048745,1.04136432,103560.0,103550.0,0.2784337]
[1746868049140,0.9338352,103560.0,103550.0,0.2784337]
[1746868049329,0.7029201,103560.0,103550.0,0.2784337]
[1746868051536,0.0500001,103560.0,103550.0,0.74676282]
[1746868051838,0.0500001,103560.0,103550.0,0.6392337]
[1746868053141,0.0500001,103560.0,103550.0,2.1392337]
[1746868054744,1e-07,103560.0,103550.0,2.24676282]
[1746868054938,1e-07,103560.0,103550.0,2.62676282]
[1746868055137,1e-07,103560.0,103550.0,2.79276282]
[1746868055345,1e-07,103560.0,103550.0,2.98589786]
[1746868056243,1e-07,103560.0,103550.0,3.23589786]
[1746868058247,1e-07,103560.0,103550.0,3.12836874]
[1746868058450,1e-07,103560.0,103550.0,2.87836874]
[1746868059346,0.1500001,103560.0,103550.0,2.65180074]
[1746868060046,0.1500001,103560.0,103550.0,2.75932986]
[1746868063748,0.2600001,103560.0,103550.0,1.9844337]
[1746868063949,0.2600001,103560.0,103550.0,2.3452337]
[1746868064145,0.2600001,103560.0,103550.0,2.1792337]
[1746868064350,0.2600001,103560.0,103550.0,1.8184337]
[1746868066446,0.2600001,103560.0,103550.0,2.28676282]
[1746868066648,0.0400001,103560.0,103550.0,2.28676282]
[1746868067553,0.3800001,103560.0,103550.0,2.1792337]
[1746868070054,0.3800001,103560.0,103550.0,0.6049337]
[1746868070353,0.89672432,103560.0,103550.0,0.3193337]
[1746868070553,0.96032432,103560.0,103550.0,0.2693337]
[1746868071057,1.51204432,103560.0,103550.0,0.1941337]
[1746868071247,1.67804432,103560.0,103550.0,0.1941337]
[1746868072153,0.1931897,103520.0,103510.0,0.0483016]
[1746868072345,1.22131882,103520.0,103510.0,0.3160993]
[1746868072551,1.22131882,103520.0,103510.0,0.0746]
[1746868072747,0.1932083,103510.0,103500.0,0.19717946]
[1746868072946,1.07770533,103510.0,103500.0,0.04056116]
[1746868073149,1.35123445,103510.0,103500.0,0.00396116]
[1746868073349,1.24370533,103510.0,103500.0,0.00396116]
[1746868073546,1.35316663,103510.0,103500.0,0.00396116]
[1746868073751,1.13810839,103510.0,103500.0,0.00396116]
[1746868074057,1.24563751,103510.0,103500.0,0.00396116]
[1746868074553,2.65247751,103510.0,103500.0,0.00396116]
[1746868075149,2.65247751,103510.0,103500.0,0.00496116]
[1746868075350,2.65267751,103510.0,103500.0,0.00496116]
[1746868077258,2.65257751,103510.0,103500.0,0.00496116]
[1746868077858,2.19833639,103510.0,103500.0,0.00496116]
[1746868078053,2.49546551,103510.0,103500.0,0.04486116]
[1746868078263,2.42607751,103510.0,103500.0,0.04486116]
[1746868078462,2.42607751,103510.0,103500.0,0.00496116]
[1746868079154,2.59207751,103510.0,103500.0,0.00496116]
[1746868079459,2.59207751,103510.0,103500.0,0.19818816]
[1746868079661,2.49546551,103510.0,103500.0,0.27548816]
[1746868080256,2.33086551,103510.0,103500.0,0.27548816]
[1746868080454,2.03373639,103510.0,103500.0,0.27548816]
[1746868080655,2.21856809,103510.0,103500.0,0.27548816]
[1746868080853,2.41177639,103510.0,103500.0,0.27548816]
[1746868081256,2.41177639,103510.0,103500.0,0.44148816]
[1746868081455,2.51930551,103510.0,103500.0,0.44148816]
[1746868081862,1.47832809,103510.0,103500.0,0.80228816]
[1746868082062,1.82093639,103510.0,103500.0,0.45148816]
[1746868082260,2.43173639,103510.0,103500.0,0.45148816]
[1746868082563,1.38242551,103510.0,103500.0,0.45148816]
[1746868082770,1.38312551,103510.0,103500.0,0.44148816]
[1746868083157,1.02232551,103510.0,103500.0,0.27548816]
[1746868083460,0.91479639,103510.0,103500.0,0.27548816]
[1746868083669,1.38312551,103510.0,103500.0,0.27548816]
[1746868084168,1.00372551,103510.0,103500.0,0.27548816]
[1746868084366,1.38300551,103510.0,103500.0,0.27548816]
[1746868085265,1.38370551,103510.0,103500.0,0.27548816]
[1746868085456,1.38370551,103510.0,103500.0,0.08226116]
[1746868085656,1.38370551,103510.0,103500.0,0.27548816]
[1746868086065,1.38370551,103510.0,103500.0,0.08226116]
[1746868086260,1.38370551,103510.0,103500.0,0.23808816]
[1746868086561,1.27547639,103510.0,103500.0,0.23808816]
[1746868086765,1.27477639,103510.0,103500.0,0.27748816]
[1746868087357,2.57081751,103510.0,103500.0,6e-08]
[1746868087556,0.1932643,103480.0,103470.0,0.33018355]
[1746868087760,0.1932643,103480.0,103470.0,0.36958355]
[1746868087761,1.2532243,103480.0,103470.0,0.36958355]
[1746868088264,1.2532243,103480.0,103470.0,0.2809923]
[1746868088664,1.2532243,103480.0,103470.0,0.2859923]
[1746868088864,1.2532243,103480.0,103470.0,0.2376728]
[1746868089068,1.36075342,103480.0,103470.0,0.2376728]
[1746868089766,1.36175342,103480.0,103470.0,0.2446728]
[1746868090161,1.36175342,103480.0,103470.0,0.0514]
[1746868090366,1.36245342,103480.0,103470.0,0.244683]
[1746868092169,1.2549243,103480.0,103470.0,0.244683]
[1746868092465,0.51996,103480.0,103470.0,0.36221212]
[1746868092662,0.75992,103480.0,103470.0,0.72301212]
[1746868092859,0.41992,103480.0,103470.0,0.72301212]
[1746868093260,1.897,103500.0,103490.0,0.1932457]
[1746868093461,2.160227,103500.0,103490.0,0.2232457]
[1746868093663,2.160227,103500.0,103490.0,0.2614457]
[1746868093864,1.967,103500.0,103490.0,0.2614457]
[1746868094161,1.967,103500.0,103490.0,0.4274457]
[1746868094570,1.967,103500.0,103490.0,0.4294457]
[1746868094770,2.160227,103500.0,103490.0,0.4294457]
[1746868095165,2.160227,103500.0,103490.0,0.4324457]
[1746868095565,1.967,103500.0,103490.0,0.4324457]
[1746868095768,1.967,103500.0,103490.0,0.7932457]
[1746868095769,1.60608,103500.0,103490.0,0.7932457]
[1746868096673,1.60608,103500.0,103490.0,0.8314457]
[1746868097373,1.799307,103500.0,103490.0,0.8314457]
[1746868097768,0.67959612,103500.0,103490.0,0.4706457]
[1746868097972,1.312867,103500.0,103490.0,0.4406457]
[1746868098177,0.952067,103500.0,103490.0,0.4406457]
[1746868099373,0.75884,103500.0,103490.0,0.4771457]
[1746868099576,0.00917218,103510.0,103500.0,0.193227]
[1746868099878,0.19785218,103510.0,103500.0,0.670627]
[1746868100071,0.19785218,103510.0,103500.0,0.836627]
[1746868100278,0.22785218,103510.0,103500.0,2.336627]
[1746868100576,0.22785218,103510.0,103500.0,0.836627]
[1746868100873,0.22785218,103510.0,103500.0,2.336627]
[1746868101377,0.22785218,103510.0,103500.0,2.44415612]
[1746868101577,0.22785218,103510.0,103500.0,2.44515612]
[1746868102177,0.22785218,103510.0,103500.0,2.44715612]
[1746868102576,0.78186048,103510.0,103500.0,1.978827]
[1746868102773,0.75186048,103510.0,103500.0,1.978827]
[1746868102972,1.1693896,103510.0,103500.0,0.478827]
[1746868103176,1.06186048,103510.0,103500.0,0.272827]
[1746868103677,0.55865218,103510.0,103500.0,0.39035612]
[1746868103877,0.21785218,103510.0,103500.0,0.75115612]
[1746868104175,0.02917218,103510.0,103500.0,0.91715612]
[1746868104477,0.00917218,103510.0,103500.0,0.91715612]
[1746868108980,0.00917218,103510.0,103500.0,2.41715612]
[1746868111975,0.00917218,103510.0,103500.0,2.47715612]
[1746868112787,0.00917218,103510.0,103500.0,2.41715612]
[1746868115079,0.00917218,103510.0,103500.0,2.52468524]
[1746868115279,1.36428132,103530.0,103520.0,0.1931897]
[1746868115280,0.01369462,103530.0,103520.0,0.1931897]
[1746868115488,0.08369462,103530.0,103520.0,0.43531882]
[1746868115783,0.27686562,103530.0,103520.0,0.3649897]
[1746868116183,0.27686562,103530.0,103520.0,0.5309897]
[1746868116383,0.08369462,103530.0,103520.0,0.5309897]
[1746868116591,0.08369462,103530.0,103520.0,0.5452149]
[1746868116880,0.08569462,103530.0,103520.0,0.5452149]
[1746868117682,0.08769462,103530.0,103520.0,0.5452149]
[1746868117985,0.078,103530.0,103520.0,0.65274402]
[1746868118285,0.076,103530.0,103520.0,0.65274402]
[1746868118686,0.074,103530.0,103520.0,0.5452149]
[1746868121390,0.267171,103530.0,103520.0,0.5452149]
[1746868122092,0.074,103530.0,103520.0,0.5452149]
[1746868122890,0.074,103530.0,103520.0,0.65274402]